fUSD/lending_fUSD_20241111
["ID","MTS","AMOUNT","RATE_DAILY","PERIOD"]
[341920252,1731286243356,-57.32957628,0.00014246,2]
[341920253,1731286243372,-387.87042372,0.00014246,2]
[341920254,1731286243385,-150.0,0.00014458,2]
[341920255,1731286243394,-589.37,0.00014567,2]
[341920256,1731286243404,-157.12,0.00014645,2]
[341920257,1731286243413,-10698.4567,0.000148,2]
[341920258,1731286243424,-807.50000199,0.00014897,2]
[341920259,1731286243433,-15936.63527203,0.00014898,2]
[341920272,1731286246076,-1045.970501,0.00014898,2]
[341920273,1731286246252,-6098.3005,0.00014898,2]
[341920274,1731286246365,-634.93954329,0.00014898,2]
[341920278,1731286419583,600.443224,0.00027,60]
[341920280,1731286486232,684.01,0.00012005,2]
[341920281,1731286549831,-200.0,0.00013132,2]
[341920282,1731286596536,-539.8335,0.00013132,2]
[341920283,1731286615783,-160.0,0.00013881,2]
[341920284,1731286615806,-556.19,0.00013889,2]
[341920285,1731286615830,-250.0,0.00013907,2]
[341920286,1731286615851,-400.0,0.00014,2]
[341920287,1731286615873,-200.0,0.00014004,2]
[341920288,1731286615899,-1000.0,0.00014022,2]
[341920289,1731286615921,-250.0,0.00014022,2]
[341920290,1731286615943,-684.01,0.00014269,2]
[341920291,1731286615964,-150.0,0.00014432,2]
[341920292,1731286615986,-400.0,0.000147,3]
[341920293,1731286616007,-225.9565,0.000147,2]
[341920296,1731286815870,4271.0,0.00027,60]
[341920297,1731287025957,420.0,0.00027,60]
[341920300,1731287119109,3061.4836929,0.00027,60]
[341920301,1731287119139,1209.5163071,0.00027,60]
[341920303,1731287203718,2231.0,0.00027,60]
[341920306,1731287378387,615.6,0.00011881,2]
[341920308,1731287432181,-250.0,0.00013818,2]
[341920309,1731287432190,-250.0,0.00013851,2]
[341920310,1731287432199,-1000.0,0.00013852,2]
[341920311,1731287432207,-388.16,0.00013903,2]
[341920312,1731287432216,-278.09,0.00013903,2]
[341920313,1731287432225,-236.12521207,0.00013917,2]
[341920314,1731287432234,-235.74,0.00013918,2]
[341920315,1731287432243,-615.6,0.00014145,2]
[341920316,1731287432251,-300.0,0.00014214,2]
[341920317,1731287432260,-282.76478793,0.00014215,2]
[341920318,1731287432275,-1488.29368655,0.00014215,2]
[341920319,1731287432285,-37535.94152552,0.00014215,2]
[341920320,1731287432297,-1000.0,0.000146,2]
[341920321,1731287432306,-1396.08064912,0.00014614,2]
[341920322,1731287432317,-2840.94935088,0.00014614,2]
[341920323,1731287432326,-235.74,0.00014614,2]
[341920324,1731287432335,-11939.78062991,0.00014643,2]
[341920325,1731287432345,-1674.21937009,0.00014643,2]
[341920326,1731287432355,-150.0,0.00014643,2]
[341920327,1731287432364,-150.0,0.00014689,2]
[341920328,1731287432373,-6068.1438421,0.0001469,2]
[341920329,1731287432382,-614.31,0.0001469,2]
[341920330,1731287432391,-940.87,0.0001469,2]
[341920331,1731287432399,-835.66508863,0.00014698,2]
[341920332,1731287432408,-114.0835,0.000147,2]
[341920333,1731287432417,-21663.0,0.000147,2]
[341920334,1731287432427,-582.4287894,0.000147,2]
[341920335,1731287432436,-835.66508856,0.00014727,2]
[341920336,1731287432445,-835.66508856,0.00014756,2]
[341920337,1731287432454,-162.06337554,0.00014773,2]
[341920338,1731287432463,-500.0,0.00014773,2]
[341920339,1731287432472,-835.66508856,0.00014785,2]
[341920340,1731287432481,-611.73521694,0.00014796,2]
[341920341,1731287432490,-500.0,0.00014797,2]
[341920342,1731287432499,-400.1078313,0.00014797,2]
[341920343,1731287432508,-500.0,0.00014797,2]
[341920344,1731287432517,-500.0,0.00014797,2]
[341920345,1731287432526,-500.0,0.00014797,2]
[341920346,1731287432536,-24926.37771953,0.00014797,2]
[341920348,1731287432574,-8661.41434813,0.00014797,2]
[341920350,1731287432623,-823.73,0.00014797,2]
[341920357,1731287438460,-746258.22226499,0.00014797,2]
[341920358,1731287438469,-13017.43850659,0.00014797,2]
[341920359,1731287438478,-500.0,0.00014798,2]
[341920360,1731287438487,-500.0,0.00014798,2]
[341920361,1731287438495,-547.22081925,0.00014798,2]
[341920362,1731287438504,-500.0,0.00014798,2]
[341920363,1731287438513,-500.0,0.00014798,2]
[341920364,1731287438522,-500.0,0.00014798,2]
[341920365,1731287438531,-500.0,0.00014798,2]
[341920366,1731287438539,-500.0,0.00014798,2]
[341920367,1731287438552,-500.0,0.00014798,2]
[341920368,1731287438563,-500.0,0.00014798,2]
[341920369,1731287438572,-500.0,0.00014798,2]
[341920370,1731287438580,-500.0,0.00014798,2]
[341920371,1731287438589,-500.0,0.00014798,2]
[341920372,1731287438598,-500.0,0.00014798,2]
[341920373,1731287438607,-542.3,0.00014798,2]
[341920374,1731287438617,-500.0,0.00014798,2]
[341920375,1731287438625,-500.0,0.00014798,2]
[341920376,1731287438634,-500.0,0.00014798,2]
[341920377,1731287438643,-500.0,0.00014798,2]
[341920378,1731287438653,-500.0,0.00014798,2]
[341920379,1731287438662,-554.28,0.00014798,2]
[341920380,1731287438671,-500.0,0.00014798,2]
[341920381,1731287438679,-500.0,0.00014798,2]
[341920382,1731287438690,-500.0,0.00014798,2]
[341920383,1731287438699,-584.631955,0.00014798,2]
[341920384,1731287438708,-443.17649135,0.00014798,2]
[341920385,1731287438717,-500.0,0.00014798,2]
[341920386,1731287438727,-500.0,0.00014798,2]
[341920388,1731287438740,-627.91,0.00014798,2]
[341920390,1731287438749,-500.0,0.00014798,2]
[341920392,1731287438758,-500.0,0.00014798,2]
[341920394,1731287438767,-500.0,0.00014798,2]
[341920396,1731287438777,-500.0,0.00014798,2]
[341920398,1731287438786,-500.0,0.00014798,2]
[341920400,1731287438795,-270.76527921,0.00014798,2]
[341920402,1731287438805,-566.5385144,0.00014798,2]
[341920404,1731287438815,-500.0,0.00014798,2]
[341920406,1731287438825,-500.0,0.00014798,2]
[341920408,1731287438834,-500.0,0.00014798,2]
[341920410,1731287438843,-500.0,0.00014798,2]
[341920412,1731287438852,-500.0,0.00014798,2]
[341920414,1731287438861,-500.0,0.00014798,2]
[341920416,1731287438870,-500.0,0.00014798,2]
[341920418,1731287438880,-500.0,0.00014798,2]
[341920420,1731287438889,-500.0,0.00014798,2]
[341920422,1731287438899,-500.0,0.00014798,2]
[341920424,1731287438909,-500.0,0.00014798,2]
[341920426,1731287438917,-500.0,0.00014798,2]
[341920428,1731287438927,-500.0,0.00014798,2]
[341920429,1731287438936,-1000.0,0.00014798,2]
[341920431,1731287438945,-299.51860027,0.00014798,2]
[341920433,1731287438954,-1000.0,0.00014798,2]
[341920434,1731287438964,-1000.0,0.00014798,2]
[341920435,1731287438973,-500.0,0.00014798,2]
[341920436,1731287438982,-500.0,0.00014798,2]
[341920437,1731287438991,-500.0,0.00014798,2]
[341920438,1731287439004,-815.85,0.00014798,2]
[341920439,1731287439013,-815.85,0.00014798,2]
[341920440,1731287439022,-815.85,0.00014798,2]
[341920441,1731287439032,-590.56,0.00014798,2]
[341920442,1731287439041,-771.17,0.00014798,2]
[341920443,1731287439052,-771.17,0.00014798,2]
[341920444,1731287439062,-771.17,0.00014798,2]
[341920445,1731287439072,-507.79,0.00014798,2]
[341920446,1731287439082,-519.75,0.00014798,2]
[341920447,1731287439092,-519.75,0.00014798,2]
[341920448,1731287439101,-519.75,0.00014798,2]
[341920449,1731287439110,-500.0,0.00014798,2]
[341920450,1731287439119,-500.0,0.00014798,2]
[341920451,1731287439129,-500.0,0.00014798,2]
[341920452,1731287439138,-500.0,0.00014798,2]
[341920453,1731287439147,-500.0,0.00014798,2]
[341920454,1731287439156,-500.0,0.00014798,2]
[341920455,1731287439165,-500.0,0.00014798,2]
[341920456,1731287439176,-500.0,0.00014798,2]
[341920457,1731287439185,-500.0,0.00014798,2]
[341920458,1731287439195,-500.0,0.00014798,2]
[341920459,1731287439204,-363.55,0.00014798,2]
[341920460,1731287439213,-500.0,0.00014798,2]
[341920461,1731287439222,-500.0,0.00014798,2]
[341920462,1731287439231,-500.0,0.00014798,2]
[341920463,1731287439240,-500.0,0.00014798,2]
[341920464,1731287439250,-500.0,0.00014798,2]
[341920465,1731287439259,-500.0,0.00014798,2]
[341920466,1731287439268,-500.0,0.00014798,2]
[341920467,1731287439278,-500.0,0.00014799,2]
[341920468,1731287439287,-500.0,0.00014799,2]
[341920469,1731287439298,-500.0,0.00014799,2]
[341920470,1731287439307,-1000.0,0.00014799,2]
[341920471,1731287439315,-500.0,0.00014799,2]
[341920472,1731287439325,-815.85,0.00014799,2]
[341920473,1731287439334,-771.17,0.00014799,2]
[341920474,1731287439343,-519.75,0.00014799,2]
[341920475,1731287439352,-500.0,0.00014799,2]
[341920476,1731287439363,-500.0,0.00014799,2]
[341920477,1731287439372,-500.0,0.00014799,2]
[341920478,1731287439381,-500.0,0.00014799,2]
[341920479,1731287439391,-634.6261,0.00014799,2]
[341920480,1731287439400,-68483.8812,0.00014799,2]
[341920481,1731287439410,-12820.8829991,0.000148,2]
[341920482,1731287439422,-2004.57194616,0.000148,2]
[341920483,1731287439438,-928.74654042,0.000148,2]
[341920484,1731287439449,-3353.46246526,0.000148,2]
[341920485,1731287440155,-798.45002803,0.000148,2]
[341920486,1731287440331,-333.40917172,0.000148,2]
[341920487,1731287440569,-388.27062654,0.000148,2]
[341920488,1731287440580,-256.45423774,0.000148,2]
[341920489,1731287440591,-486.06072121,0.000148,2]
[341920490,1731287440601,-3327.66196382,0.000148,2]
[341920491,1731287440610,-835.66508856,0.00014813,2]
[341920492,1731287440619,-835.66508856,0.00014842,2]
[341920493,1731287440628,-500.0,0.00014844,3]
[341920494,1731287440637,-835.66508856,0.00014871,2]
[341920495,1731287440646,-599.07,0.00014896,2]
[341920496,1731287440655,-500.0,0.00014896,2]
[341920497,1731287440664,-500.0,0.00014896,2]
[341920498,1731287440673,-500.0,0.00014896,2]
[341920499,1731287440682,-500.0,0.00014896,2]
[341920500,1731287440691,-500.0,0.00014896,2]
[341920501,1731287440700,-500.0,0.00014896,2]
[341920502,1731287440710,-500.0,0.00014896,2]
[341920503,1731287440718,-500.0,0.00014896,2]
[341920504,1731287440730,-205.45316391,0.00014896,2]
[341920505,1731287440740,-500.0,0.00014896,2]
[341920506,1731287440749,-500.0,0.00014896,2]
[341920507,1731287440758,-500.0,0.00014896,2]
[341920508,1731287440766,-425.13259435,0.00014896,2]
[341920509,1731287440776,-181.3846467,0.00014896,2]
[341920510,1731287440787,-318.6153533,0.00014896,2]
[341920511,1731287440797,-181.1428481,0.00014896,2]
[341920516,1731287443257,-167.13,0.0001408,2]
[341920517,1731287443266,-177.72745933,0.00014896,2]
[341920518,1731287443276,-500.0,0.00014896,2]
[341920519,1731287443286,-500.0,0.00014896,2]
[341920520,1731287443295,-500.0,0.00014896,2]
[341920521,1731287443307,-500.0,0.00014896,2]
[341920522,1731287443316,-500.0,0.00014896,2]
[341920523,1731287443325,-172.22651604,0.00014896,2]
[341920524,1731287443337,-327.77348396,0.00014896,2]
[341920525,1731287443346,-500.0,0.00014896,2]
[341920526,1731287443355,-238.38576083,0.00014896,2]
[341920527,1731287443379,-261.61423917,0.00014896,2]
[341920528,1731287443389,-500.0,0.00014896,2]
[341920529,1731287443398,-500.0,0.00014896,2]
[341920530,1731287443407,-500.0,0.00014896,2]
[341920531,1731287443416,-559.4,0.00014896,2]
[341920532,1731287443425,-299.85065083,0.00014896,2]
[341920533,1731287443434,-500.0,0.00014896,2]
[341920534,1731287443443,-500.0,0.00014896,2]
[341920535,1731287443453,-493.94256599,0.00014896,2]
[341920536,1731287443468,-6.05743401,0.00014896,2]
[341920537,1731287443477,-500.0,0.00014896,2]
[341920538,1731287443486,-500.0,0.00014896,2]
[341920539,1731287443495,-500.0,0.00014896,2]
[341920540,1731287443504,-500.0,0.00014896,2]
[341920541,1731287443514,-500.0,0.00014896,2]
[341920542,1731287443523,-500.0,0.00014896,2]
[341920543,1731287443532,-592.26,0.00014896,2]
[341920544,1731287443541,-500.0,0.00014896,2]
[341920545,1731287443554,-500.0,0.00014896,2]
[341920546,1731287443563,-537.9696879,0.00014896,2]
[341920547,1731287443572,-500.0,0.00014896,2]
[341920548,1731287443581,-500.0,0.00014896,2]
[341920549,1731287443591,-500.0,0.00014896,2]
[341920550,1731287443600,-500.0,0.00014896,2]
[341920551,1731287443609,-500.0,0.00014896,2]
[341920552,1731287443619,-500.0,0.00014896,2]
[341920553,1731287443628,-500.0,0.00014896,2]
[341920554,1731287443638,-500.0,0.00014896,2]
[341920555,1731287443647,-500.0,0.00014896,2]
[341920556,1731287443657,-500.0,0.00014896,2]
[341920557,1731287443666,-370.55662828,0.00014896,2]
[341920558,1731287443677,-163.78566328,0.00014896,2]
[341920559,1731287443687,-340.37594113,0.00014896,2]
[341920560,1731287443696,-500.0,0.00014896,2]
[341920561,1731287443705,-500.0,0.00014896,2]
[341920562,1731287443714,-500.0,0.00014896,2]
[341920563,1731287443724,-500.0,0.00014896,2]
[341920564,1731287443737,-500.0,0.00014896,2]
[341920565,1731287443746,-500.0,0.00014896,2]
[341920566,1731287443755,-500.0,0.00014896,2]
[341920567,1731287443764,-500.0,0.00014896,2]
[341920568,1731287443775,-500.0,0.00014896,2]
[341920569,1731287443784,-185.09631381,0.00014896,2]
[341920571,1731287443794,-500.0,0.00014896,2]
[341920573,1731287443809,-541.32,0.00014896,2]
[341920575,1731287443819,-541.32,0.00014896,2]
[341920577,1731287443829,-541.32,0.00014896,2]
[341920579,1731287443838,-500.0,0.00014896,2]
[341920581,1731287443847,-343.76,0.00014896,2]
[341920583,1731287443856,-152.25,0.00014896,2]
[341920585,1731287443865,-8946.8511,0.00014897,2]
[341920587,1731287443874,-500.0,0.00014898,2]
[341920590,1731287443883,-500.0,0.00014898,2]
[341920593,1731287443892,-482.36195886,0.00014898,2]
[341920596,1731287443901,-500.0,0.00014898,2]
[341920599,1731287443911,-412.93340602,0.00014898,2]
[341920602,1731287443920,-383.16,0.00014898,2]
[341920604,1731287443929,-500.0,0.00014898,2]
[341920606,1731287443938,-500.0,0.00014898,2]
[341920608,1731287443947,-500.0,0.00014898,2]
[341920610,1731287443956,-500.0,0.00014898,2]
[341920612,1731287443965,-561.52190492,0.00014898,2]
[341920614,1731287443974,-541.32,0.00014898,2]
[341920616,1731287443983,-8500.0,0.000149,2]
[341920618,1731287443992,-835.66508856,0.000149,2]
[341920620,1731287444001,-354.8,0.00014908,2]
[341920622,1731287444010,-586.652,0.00014954,2]
[341920624,1731287444019,-539.212,0.00014954,2]
[341920626,1731287444028,-1989.0,0.00014954,2]
[341920628,1731287444037,-1794.0,0.00014954,2]
[341920630,1731287444046,-813.0,0.00014954,2]
[341920632,1731287444056,-921.0,0.00014954,2]
[341920634,1731287444066,-1258.0,0.00014954,2]
[341920636,1731287444075,-2910.0,0.00014954,2]
[341920638,1731287444084,-3463.0,0.00014954,2]
[341920640,1731287444093,-500.0,0.00014971,2]
[341920642,1731287444102,-500.0,0.00014971,2]
[341920644,1731287444111,-500.0,0.00014971,2]
[341920646,1731287444120,-500.0,0.00014971,2]
[341920648,1731287444129,-500.0,0.00014971,2]
[341920650,1731287444141,-500.0,0.00014971,2]
[341920652,1731287444150,-28.99930595,0.00014971,2]
[341920654,1731287444162,-471.00069405,0.00014971,2]
[341920656,1731287444171,-500.0,0.00014971,2]
[341920658,1731287444181,-500.0,0.00014971,2]
[341920660,1731287444189,-500.0,0.00014971,2]
[341920662,1731287444198,-500.0,0.00014971,2]
[341920664,1731287444207,-500.0,0.00014971,2]
[341920666,1731287444216,-500.0,0.00014971,2]
[341920668,1731287444224,-500.0,0.00014971,2]
[341920670,1731287444234,-567.16,0.00014971,2]
[341920672,1731287444243,-500.0,0.00014971,2]
[341920674,1731287444251,-500.0,0.00014971,2]
[341920676,1731287444261,-500.0,0.00014971,2]
[341920678,1731287444269,-500.0,0.00014971,2]
[341920680,1731287444279,-500.0,0.00014971,2]
[341920682,1731287444288,-500.0,0.00014971,2]
[341920684,1731287444299,-500.0,0.00014971,2]
[341920686,1731287444309,-500.0,0.00014971,2]
[341920688,1731287444319,-530.2553899,0.00014971,2]
[341920690,1731287444329,-500.0,0.00014971,2]
[341920692,1731287444338,-500.0,0.00014971,2]
[341920694,1731287444347,-500.0,0.00014971,2]
[341920696,1731287444356,-500.0,0.00014973,2]
[341920698,1731287444365,-500.0,0.00014973,2]
[341920700,1731287444375,-500.0,0.00014973,2]
[341920702,1731287444385,-500.0,0.00014973,2]
[341920704,1731287444394,-500.0,0.00014973,2]
[341920706,1731287444404,-500.0,0.00014973,2]
[341920708,1731287444413,-226.70103618,0.00014973,2]
[341920710,1731287444422,-500.0,0.00014973,2]
[341920712,1731287444432,-202.87810316,0.00014973,2]
[341920714,1731287444441,-179.8610645,0.00014988,2]
[341920716,1731287444450,-178.9939217,0.0001499,2]
[341920718,1731287444460,-178.1267788,0.0001499,2]
[341920720,1731287444469,-177.259636,0.0001499,2]
[341920722,1731287444479,-176.3924931,0.0001499,2]
[341920724,1731287444488,-575.67409904,0.00014996,2]
[341920726,1731287444497,-500.0,0.00014998,2]
[341920728,1731287444507,-581.53681455,0.00014998,2]
[341920730,1731287444517,-500.0,0.00014998,2]
[341920732,1731287444526,-1000.0,0.00014998,2]
[341920734,1731287444536,-500.0,0.00014998,2]
[341920736,1731287444546,-815.85,0.00014998,2]
[341920738,1731287444557,-771.17,0.00014998,2]
[341920740,1731287444567,-519.75,0.00014998,2]
[341920742,1731287444576,-1809.48035554,0.00014998,2]
[341920903,1731287446342,-3187.88732942,0.00014998,2]
[341920905,1731287446355,-529.55709415,0.00014998,2]
[341922267,1731287616803,-2083.35,0.00014081,2]
[341922268,1731287616827,-300.0,0.00014697,2]
[341922269,1731287616849,-262.65,0.00014698,2]
[341922270,1731287678357,150.0,0.00013,5]
[341922272,1731287808910,1800.0,0.000206,30]
[341922274,1731287923676,150.0,0.00027,60]
[341922275,1731288057305,592.65,0.00011974,2]
[341922278,1731288320418,300.0,9e-05,2]
[341922280,1731288424643,9000.0,0.00027,60]
[341922283,1731288503371,-292.4610262,0.000125,2]
[341922284,1731288520309,212.82400797,0.0001,2]
[341922366,1731288631548,-300.0,0.00012899,2]
[341922367,1731288631558,-6826.74258173,0.000129,2]
[341922368,1731288631687,-8097.30690179,0.000129,2]
[341922369,1731288631697,-4372.89604519,0.00013,2]
[341922370,1731288631707,-212.41505701,0.00013,2]
[341922371,1731288631718,-449.08089622,0.00013479,2]
[341922372,1731288631728,-150.0,0.00013479,2]
[341922373,1731288631739,-7709.60109979,0.0001348,2]
[341922374,1731288631751,-1571.04711358,0.0001348,2]
[341922375,1731288631764,-6056.83550513,0.0001348,2]
[341922376,1731288631826,-1034.46527114,0.0001348,2]
[341922379,1731288631837,-700.0,0.0001348,2]
[341922487,1731288637598,-1008.52779453,0.0001348,2]
[341922488,1731288637610,-1227.48636699,0.0001348,2]
[341922489,1731288637684,-30466.9523345,0.0001348,2]
[341922490,1731288637694,-400.0,0.000135,2]
[341922491,1731288637703,-524.65,0.00013808,2]
[341922492,1731288637712,-192.2,0.00013848,2]
[341922493,1731288637721,-489.47,0.0001389,2]
[341922494,1731288637731,-747.51,0.00013894,2]
[341922495,1731288637740,-1000.0,0.00013895,2]
[341922496,1731288637749,-250.0,0.00013895,2]
[341922497,1731288637759,-1251.37,0.00013895,2]
[341922498,1731288637769,-346.5,0.00013895,2]
[341922499,1731288637779,-999.99,0.00013895,2]
[341922500,1731288637788,-278.09,0.00013902,2]
[341922501,1731288637798,-420.0,0.00014147,2]
[341922502,1731288637808,-592.65,0.00014238,2]
[341922503,1731288637817,-11060.59230967,0.000145,3]
[341922504,1731288637827,-192.2,0.00014541,2]
[341922505,1731288637836,-255.0,0.00014598,2]
[341922506,1731288637846,-794.74909552,0.00014696,2]
[341922507,1731288637855,-8466.7611,0.00014698,2]
[341922508,1731288637864,-1802.0,0.000147,2]
[341922509,1731288637874,-150.0,0.00014732,2]
[341922510,1731288637883,-150.0,0.00014736,2]
[341922511,1731288637892,-150.0,0.00014751,2]
[341922512,1731288637902,-150.0,0.00014757,2]
[341922513,1731288637911,-150.0,0.00014758,2]
[341922514,1731288637920,-164.3308,0.00014796,2]
[341922515,1731288637930,-575.67409904,0.00014796,2]
[341922516,1731288637939,-180.81996608,0.00014796,2]
[341922517,1731288637951,-110.97364364,0.00014796,2]
[341922518,1731288637961,-500.0,0.00014798,2]
[341922519,1731288637970,-198.16041476,0.00014798,2]
[341922588,1731288639548,-301.83958524,0.00014798,2]
[341922590,1731288639558,-436.08,0.00014798,2]
[341922591,1731288639567,-500.0,0.00014798,2]
[341922593,1731288639576,-794.74909552,0.00014798,2]
[341922595,1731288639585,-150.0,0.00014815,2]
[341922596,1731288639594,-150.0,0.00014817,2]
[341922597,1731288639603,-150.0,0.0001482,2]
[341922598,1731288639612,-150.0,0.00014823,2]
[341922599,1731288639621,-1500.0,0.00014833,2]
[341922600,1731288639631,-150.0,0.00014836,2]
[341922601,1731288639641,-150.0,0.00014867,2]
[341922602,1731288639650,-150.0,0.00014868,2]
[341922603,1731288639660,-150.0,0.00014871,2]
[341922604,1731288639670,-198.88475513,0.00014871,2]
[341922605,1731288639679,-150.0,0.00014875,2]
[341922606,1731288639689,-500.0,0.00014896,2]
[341922607,1731288639698,-608.81298357,0.00014896,2]
[341922608,1731288639707,-500.0,0.00014896,2]
[341922609,1731288639717,-500.0,0.00014896,2]
[341922610,1731288639727,-500.0,0.00014896,2]
[341922611,1731288639736,-166.1863,0.00014897,2]
[341922612,1731288639746,-500.0,0.00014898,2]
[341922613,1731288639755,-15596.90973874,0.00014898,2]
[341922614,1731288639767,-7661.46517136,0.00014898,2]
[341922615,1731288639777,-139.2193899,0.00014898,2]
[341922616,1731288639787,-500.39061015,0.00014898,2]
[341922617,1731288639798,-1807.34745881,0.00014898,2]
[341922618,1731288639825,-6101.23033104,0.00014898,2]
[341922619,1731288639835,-11763.6263,0.00014898,2]
[341922620,1731288639845,-7608.69822649,0.00014898,2]
[341922621,1731288639856,-998.45,0.00014898,2]
[341922897,1731288643134,-3196.54367351,0.00014898,2]
[341922899,1731288643144,-1467.55117276,0.00014898,2]
[341922915,1731288643288,-1297.83112724,0.00014898,2]
[341922917,1731288643298,-692.7,0.00014898,2]
[341922919,1731288643309,-8500.0,0.000149,2]
[341922921,1731288643318,-150.0,0.00014901,2]
[341922923,1731288643327,-150.0,0.00014901,2]
[341922925,1731288643336,-150.0,0.00014902,2]
[341922927,1731288643346,-150.0,0.00014902,2]
[341922929,1731288643355,-1500.0,0.00014924,2]
[341922931,1731288643364,-150.0,0.00014932,2]
[341922933,1731288643374,-150.0,0.00014943,2]
[341922935,1731288643383,-150.0,0.00014944,2]
[341922937,1731288643392,-150.0,0.00014946,2]
[341922939,1731288643401,-150.0,0.00014948,2]
[341922941,1731288643411,-150.0,0.00014954,2]
[341922943,1731288643420,-1921.0,0.00014955,2]
[341922945,1731288643429,-921.0,0.00014955,2]
[341922947,1731288643438,-2910.0,0.00014955,2]
[341922949,1731288643447,-813.0,0.00014955,2]
[341922951,1731288643455,-3463.0,0.00014955,2]
[341922953,1731288643465,-151.694,0.00014955,2]
[341922955,1731288643474,-1260.391,0.00014955,2]
[341922957,1731288643483,-5957.948,0.00014955,2]
[341922959,1731288643491,-461.206,0.00014955,2]
[341922961,1731288643501,-13704.916,0.00014955,2]
[341922963,1731288643510,-631.0,0.00014955,2]
[341922965,1731288643520,-1165.981,0.00014955,2]
[341922967,1731288643530,-150.0,0.00014957,2]
[341922969,1731288643539,-469.322,0.00014959,2]
[341922971,1731288643548,-278.84198865,0.00014962,2]
[341922973,1731288643557,-1655.38858894,0.0001497,2]
[341922975,1731288643566,-725.4849777,0.00014972,2]
[341922977,1731288643578,-774.5150223,0.00014972,2]
[341922979,1731288643587,-160.1451338,0.00014973,2]
[341922981,1731288643595,-500.0,0.00014973,2]
[341922983,1731288643604,-160.40518892,0.00014973,2]
[341922985,1731288643614,-890.6338941,0.00014987,2]
[341922987,1731288643623,-175.52535069,0.00014987,2]
[341922989,1731288643632,-500.0,0.00014997,2]
[341922991,1731288643641,-500.0,0.00014997,2]
[341922993,1731288643650,-500.0,0.00014997,2]
[341922995,1731288643660,-180.07548191,0.00014997,2]
[341922997,1731288643669,-500.0,0.00014997,2]
[341922999,1731288643679,-500.0,0.00014997,2]
[341923001,1731288643688,-261.19004478,0.00014997,2]
[341923003,1731288643697,-500.0,0.00014997,2]
[341923005,1731288643706,-343.04076957,0.00014997,2]
[341923007,1731288643717,-500.0,0.00014997,2]
[341923009,1731288643726,-500.0,0.00014997,2]
[341923011,1731288643735,-500.0,0.00014997,2]
[341923013,1731288643744,-500.0,0.00014997,2]
[341923015,1731288643754,-500.0,0.00014997,2]
[341923016,1731288643763,-321.38,0.00014997,2]
[341923017,1731288643776,-430.83423045,0.00014997,2]
[341923018,1731288643785,-500.0,0.00014997,2]
[341923019,1731288643795,-500.0,0.00014997,2]
[341923020,1731288643805,-500.0,0.00014997,2]
[341923021,1731288643814,-500.0,0.00014997,2]
[341923022,1731288643825,-500.0,0.00014997,2]
[341923023,1731288643835,-482.36195886,0.00014997,2]
[341923024,1731288643844,-363.37821941,0.00014997,2]
[341923025,1731288643854,-500.0,0.00014997,2]
[341923026,1731288643863,-412.93340602,0.00014997,2]
[341923027,1731288643873,-541.32,0.00014997,2]
[341923028,1731288643882,-541.32,0.00014997,2]
[341923029,1731288643892,-500.0,0.00014997,2]
[341923030,1731288643901,-343.76,0.00014997,2]